[Event "41th GRE-ch Women 2018"]
[Site "Thessaloniki"]
[Date "2018.12.18"]
[Round "7"]
[White "Fragkou, Eleni"]
[Black "Pavlidou, Ekaterini"]
[Result "1/2-1/2"]
[ECO "B47"]
[WhiteElo "2031"]
[BlackElo "2185"]
[Annotator "NA"]
[PlyCount "77"]
[EventDate "2018.12.12"]
[EventType "tourn"]
[EventCountry "GRE"]
[SourceTitle "playchess.com"]
[Source "ChessBase"]
[SourceQuality "1"]
[TimeControl "40/5400+30:1800+30"]

1. e4 {[%emt 0:00:00]} c5 {[%emt 0:00:00]} 2. Nf3 {[%emt 0:00:00]} Nc6 {[%emt 0:00:24]} 3. d4 {[%emt 0:00:00]} cxd4 {[%emt 0:00:08]} 4. Nxd4 {[%emt 0:00:07]} e6 {[%emt 0:00:29]} 5. Nc3 {[%emt 0:00:18]} Qc7 {[%emt 0:00:20]} 6. f4 {[%emt 0:00:41]} Nxd4 {[%emt 0:00:26]} 7. Qxd4 {[%emt 0:00:12]} a6 {[%emt 0:00:19]} 8. Be3 {[%emt 0:00:39] B47: Sicilian: Taimanov: 5 Nc3 Qc7 6 f4, 6 g3 and 6 Be2} (8. a4 b6 9. Be3 Rb8 10. Be2 Ne7 11. O-O Nc6 12. Qc4 Bc5 13. Bxc5 Na5 14. Qd3 bxc5 15. e5 Bb7 {½-½ (36) Shankland,S (2668)-Bruzon Batista,L (2673) Saint Louis 2018}) 8... b5 {[%emt 0:03:19]} 9. O-O-O {[%emt 0:01:55]} Bb7 {[%emt 0:00:32]} 10. Bd3 {[%emt 0:06:20]} Rc8 {[%emt 0:03:35]} 11. Kb1 {[%emt 0:06:58]} Nf6 {[%emt 0:13:56]} 12. e5 {[%emt 0:03:17] LiveBook: 25 Games} Nd5 {[%emt 0:02:38]} 13. Ne4 {[%emt 0:05:12]} Be7 {[%emt 0:05:27]} 14. Nd6+ {[%emt 0:11:11]} Bxd6 {[%emt 0:00:08]} 15. exd6 {[%emt 0:00:03]} Qxd6 {[%emt 0:00:38]} 16. Qxg7 {[%emt 0:00:42] [#]} Qf8 $146 {[%emt 0:06:04]} 17. Qd4 {[%emt 0:07:19]} f6 {[%emt 0:01:59]} 18. c3 $16 {[%emt 0:16:59]} Qe7 {[%emt 0:03:32]} 19. Rhe1 {[%emt 0:12:47]} Rg8 {[%emt 0:02:10]} 20. Bf1 {[%emt 0:14:59]} Bc6 {[%emt 0:16:26]} 21. Qd2 {[%emt 0:06:10]} a5 {[%emt 0:02:09]} 22. Bd4 {[%emt 0:00:22]} Kf7 {[%emt 0:04:26]} 23. Qf2 {[%emt 0:00:45]} Rg4 {[%emt 0:03:58]} 24. g3 {[%emt 0:00:14]} Kg8 {[%emt 0:10:43]} 25. h3 {[%emt 0:00:09]} Rg7 {[%emt 0:00:10]} 26. g4 {[%emt 0:00:33]} Rf7 {[%emt 0:00:16]} 27. Qg3 {[%emt 0:01:26]} Qd6 {[%emt 0:03:42]} 28. g5 {[%emt 0:03:22]} Qxf4 {[%emt 0:03:06]} 29. Qxf4 {[%emt 0:00:12]} Nxf4 {[%emt 0:00:03]} 30. Bxf6 {[%emt 0:00:27]} Nd5 {[%emt 0:02:15]} 31. Be5 {[%emt 0:01:14]} Rf2 {[%emt 0:03:56]} 32. Bd3 {[%emt 0:00:43]} Nf4 {[%emt 0:06:28]} 33. h4 {[%emt 0:00:34]} Ng2 {[%emt 0:00:52]} 34. Rf1 {[%emt 0:00:33]} Rxf1 {[%emt 0:01:07]} 35. Rxf1 {[%emt 0:00:17]} Nxh4 {[%emt 0:00:08]} 36. Rf6 {[%emt 0:00:14]} Nf5 {[%emt 0:02:24]} 37. Bxf5 {[%emt 0:00:37]} exf5 {[%emt 0:00:02]} 38. Kc1 {[%emt 0:00:46]} Rf8 {[%emt 0:01:55]} 39. Rxf8+ {[%emt 0:00:21]} 1/2-1/2

[Event "41th GRE-ch Women 2018"]
[Site "Thessaloniki"]
[Date "2018.12.18"]
[Round "7"]
[White "Tsivelekidou, Evgenia"]
[Black "Skaraki, Antigoni"]
[Result "1-0"]
[ECO "B06"]
[WhiteElo "1861"]
[BlackElo "2012"]
[Annotator "NA"]
[PlyCount "107"]
[EventDate "2018.12.12"]
[EventType "tourn"]
[EventCountry "GRE"]
[SourceTitle "playchess.com"]
[Source "ChessBase"]
[SourceQuality "1"]
[TimeControl "40/5400+30:1800+30"]

1. d4 {[%emt 0:00:00]} g6 {[%emt 0:00:00]} 2. Nc3 {[%emt 0:00:22]} Bg7 {[%emt 0:00:00]} 3. e4 {[%emt 0:00:14]} d6 {[%emt 0:00:07]} 4. Bf4 {[%emt 0:00:08]} a6 {[%emt 0:00:17]} 5. Qd2 {[%emt 0:00:44]} Nd7 {[%emt 0:00:18]} 6. Nf3 {[%emt 0:01:58]} b5 {[%emt 0:00:11]} 7. a4 {[%emt 0:09:29]} b4 {[%emt 0:12:31]} 8. Nd5 {[%emt 0:04:55]} a5 {[%emt 0:04:19]} 9. Bd3 {[%emt 0:03:49]} Bb7 {[%emt 0:03:37]} 10. c4 {[%emt 0:06:48]} e6 {[%emt 0:11:28]} 11. Ne3 {[%emt 0:00:59]} Ngf6 {[%emt 0:04:17]} 12. Qc2 {[%emt 0:02:35]} h6 {[%emt 0:09:19]} 13. h3 {[%emt 0:11:54] [#]} Nh5 {[%emt 0:05:38]} (13... e5 $1 $17 {[%cal Re5f4]} 14. dxe5 dxe5 15. Bxe5 Nxe5 16. Nxe5 Nh5) 14. Bh2 {[%emt 0:00:09]} e5 $11 15. dxe5 {[%emt 0:05:37]} dxe5 {[%emt 0:02:25]} 16. c5 {[%emt 0:05:18]} c6 {[%emt 0:14:49]} 17. O-O {[%emt 0:06:00]} O-O {[%emt 0:03:46]} 18. Nc4 {[%emt 0:12:09]} Ba6 {[%emt 0:02:37]} 19. Rfd1 {[%emt 0:03:56]} Bxc4 {[%emt 0:00:35]} 20. Qxc4 {[%emt 0:00:46]} Qe7 {[%emt 0:00:46]} 21. Rac1 {[%emt 0:00:50]} Rfd8 {[%emt 0:00:57]} 22. Bf1 {[%emt 0:04:01]} Nf4 {[%emt 0:05:55]} 23. Rd6 {[%emt 0:02:49]} Ne6 {[%emt 0:05:09]} 24. Rxc6 {[%emt 0:01:36]} Kh7 {[%emt 0:00:19]} 25. b3 {[%emt 0:02:54]} g5 {[%emt 0:02:33]} 26. Bg3 {[%emt 0:04:22]} Rac8 {[%emt 0:05:37]} 27. Rxc8 {[%emt 0:01:34]} Rxc8 {[%emt 0:00:00]} 28. c6 {[%emt 0:01:27]} f6 {[%emt 0:00:29]} 29. Qa6 {[%emt 0:01:41]} Rc7 {[%emt 0:02:27]} 30. Qxa5 {[%emt 0:00:38]} Bf8 {[%emt 0:00:47]} 31. Qd5 {[%emt 0:02:59]} Nb6 {[%emt 0:02:26]} 32. Qb5 {[%emt 0:00:47]} Nc8 {[%emt 0:00:13]} 33. Qd5 {[%emt 0:01:44]} Nb6 {[%emt 0:00:18]} 34. Qb5 {[%emt 0:00:05]} Nc8 {[%emt 0:00:05]} 35. Kh2 {[%emt 0:01:01]} Nd8 {[%emt 0:00:40]} 36. Qd5 {[%emt 0:00:32]} Nb6 {[%emt 0:01:18]} 37. Qb5 {[%emt 0:00:15]} Nc8 {[%emt 0:00:07]} 38. Qd5 {[%emt 0:00:15]} Nb6 {[%emt 0:00:19]} 39. Qb5 {[%emt 0:00:06]} Nc8 {[%emt 0:01:23]} 40. Qa6 {[%emt 0:00:00]} Na7 {[%emt 0:00:00]} 41. Qb6 {[%emt 0:09:31]} Nc8 {[%emt 0:09:03]} 42. Qb5 {[%emt 0:03:19]} Na7 {[%emt 0:01:38]} 43. Qd5 {[%emt 0:01:16]} h5 {[%emt 0:12:49]} 44. h4 {[%emt 0:03:01]} g4 {[%emt 0:00:11]} 45. Ne1 {[%emt 0:04:18]} Naxc6 {[%emt 0:02:30]} 46. Bc4 {[%emt 0:01:55]} Nd4 {[%emt 0:02:42]} 47. Qg8+ {[%emt 0:03:33]} Kh6 {[%emt 0:00:04]} 48. Nc2 {[%emt 0:03:01]} N8c6 {[%emt 0:04:21]} 49. Ne3 Qg7 {[%emt 0:01:33]} 50. Qxg7+ {[%emt 0:03:16]} Kxg7 {[%emt 0:00:10]} 51. Bd5 {[%emt 0:00:32]} Bd6 {[%emt 0:01:12]} 52. Bxc6 {[%emt 0:01:41]} Kf8 53. Nf5 {[%emt 0:00:59]} Be7 {[%emt 0:01:40]} 54. Nxd4 {[%emt 0:00:05]} 1-0

[Event "41th GRE-ch Women 2018"]
[Site "Thessaloniki"]
[Date "2018.12.18"]
[Round "7"]
[White "Petraki, Evaggelia"]
[Black "Androni, Konstantina"]
[Result "1-0"]
[ECO "B07"]
[WhiteElo "1756"]
[BlackElo "1912"]
[Annotator "NA"]
[PlyCount "165"]
[EventDate "2018.12.12"]
[EventType "tourn"]
[EventCountry "GRE"]
[SourceTitle "playchess.com"]
[Source "ChessBase"]
[SourceQuality "1"]
[TimeControl "40/5400+30:1800+30"]

1. e4 {[%emt 0:00:00]} d6 {[%emt 0:00:00]} 2. d4 {[%emt 0:00:00]} Nf6 {[%emt 0:00:00]} 3. Nc3 {[%emt 0:00:40]} e5 {[%emt 0:00:03]} 4. dxe5 {[%emt 0:02:14]} dxe5 {[%emt 0:00:08]} 5. Qxd8+ {[%emt 0:00:27]} Kxd8 {[%emt 0:00:02]} 6. Bg5 {[%emt 0:02:12]} Be6 {[%emt 0:00:26]} 7. O-O-O+ {[%emt 0:02:10]} Nbd7 {[%emt 0:00:55]} 8. Nf3 {[%emt 0:03:56]} Kc8 {[%emt 0:00:27]} 9. Bh4 {[%emt 0:11:53]} c6 {[%emt 0:08:17]} 10. Ng5 {[%emt 0:05:29]} Nc5 {[%emt 0:23:01]} 11. Bg3 {[%emt 0:17:04]} Nfd7 {[%emt 0:00:25]} 12. Nxe6 {[%emt 0:01:10]} Nxe6 {[%emt 0:00:13]} 13. Bc4 {[%emt 0:00:14]} Be7 {[%emt 0:06:27]} 14. Kb1 b5 {[%emt 0:17:15]} 15. Bxe6 {[%emt 0:10:13]} fxe6 {[%emt 0:00:11]} 16. f3 {[%emt 0:03:50]} Kc7 {[%emt 0:00:16]} 17. Rd3 {[%emt 0:00:24]} Bf6 {[%emt 0:12:11]} 18. Rhd1 {[%emt 0:00:29]} Nb6 {[%emt 0:00:40]} 19. b3 {[%emt 0:06:26]} a5 {[%emt 0:02:11]} 20. Rd6 {[%emt 0:01:35]} Rhe8 {[%emt 0:09:49]} 21. Bf2 {[%emt 0:01:47]} Nd5 {[%emt 0:00:19]} 22. exd5 Kxd6 {[%emt 0:00:08]} 23. Ne4+ {[%emt 0:09:06]} Ke7 {[%emt 0:03:56]} 24. d6+ {[%emt 0:12:50]} Kf7 {[%emt 0:00:37]} 25. d7 {[%emt 0:01:06]} Reb8 {[%emt 0:01:50]} 26. Nd6+ {[%emt 0:03:03]} Kg6 {[%emt 0:01:28]} 27. Nc8 {[%emt 0:00:12]} a4 {[%emt 0:02:16]} 28. Rd6 {[%emt 0:01:00]} axb3 {[%emt 0:01:10]} 29. cxb3 {[%emt 0:00:50]} Rxc8 {[%emt 0:02:07]} 30. dxc8=Q {[%emt 0:00:05]} Rxc8 {[%emt 0:00:03]} 31. Bb6 {[%emt 0:02:40]} Kf5 {[%emt 0:01:36]} 32. a4 {[%emt 0:00:16]} bxa4 {[%emt 0:01:36]} 33. bxa4 {[%emt 0:00:01]} c5 {[%emt 0:00:01]} 34. a5 {[%emt 0:00:15]} c4 {[%emt 0:00:06]} 35. Kc2 {[%emt 0:00:52]} e4 {[%emt 0:00:13]} 36. fxe4+ {[%emt 0:01:50]} Ke5 {[%emt 0:01:16]} 37. Rd7 {[%emt 0:00:56]} Kxe4 {[%emt 0:00:04]} 38. a6 {[%emt 0:00:28]} Be5 {[%emt 0:04:33]} 39. h3 {[%emt 0:01:10]} h5 {[%emt 0:02:10]} 40. a7 {[%emt 0:00:00]} Bf6 {[%emt 0:00:00]} 41. Rc7 {[%emt 0:11:04]} Ra8 {[%emt 0:02:11]} 42. Rxc4+ {[%emt 0:00:26]} Kd5 {[%emt 0:01:09]} 43. Rc5+ {[%emt 0:05:31]} Kd6 {[%emt 0:00:27]} 44. Rxh5 {[%emt 0:03:08]} Kc6 {[%emt 0:07:43]} 45. Be3 {[%emt 0:00:43]} Bd8 {[%emt 0:03:34]} 46. Rc5+ {[%emt 0:01:49]} Kd7 {[%emt 0:01:04]} 47. Rc4 {[%emt 0:01:51]} e5 {[%emt 0:02:58]} 48. Kd3 {[%emt 0:00:52]} Bc7 {[%emt 0:00:10]} 49. Rg4 {[%emt 0:00:35]} Kc6 {[%emt 0:02:43]} 50. Rxg7 {[%emt 0:01:09]} Kb7 {[%emt 0:00:56]} 51. h4 {[%emt 0:00:53]} Rh8 {[%emt 0:01:29]} 52. g3 {[%emt 0:00:24]} e4+ {[%emt 0:01:09]} 53. Kxe4 {[%emt 0:01:12]} Re8+ {[%emt 0:00:03]} 54. Kf3 {[%emt 0:00:12]} Rf8+ {[%emt 0:01:14]} 55. Bf4 {[%emt 0:00:23]} Ka8 {[%emt 0:00:21]} 56. Ke3 {[%emt 0:06:14]} Bxf4+ {[%emt 0:01:09]} 57. gxf4 {[%emt 0:00:05]} Re8+ {[%emt 0:00:09]} 58. Kd3 {[%emt 0:00:54]} Re3+ {[%emt 0:00:34]} 59. Kd4 {[%emt 0:00:47]} Re4+ {[%emt 0:00:07]} 60. Kd5 {[%emt 0:00:05]} Rxf4 {[%emt 0:01:03]} 61. Rg8+ {[%emt 0:00:03]} Kxa7 {[%emt 0:00:04]} 62. Rh8 {[%emt 0:00:03]} Kb7 {[%emt 0:02:39]} 63. Ke5 {[%emt 0:00:16]} Rf1 {[%emt 0:00:29]} 64. Rd8 {[%emt 0:00:13]} Kc7 {[%emt 0:02:20]} 65. Rd4 {[%emt 0:00:06]} Re1+ {[%emt 0:00:33]} 66. Kf6 {[%emt 0:00:19]} Rf1+ {[%emt 0:00:06]} 67. Kg6 {[%emt 0:00:30]} Rg1+ {[%emt 0:00:07]} 68. Kh6 {[%emt 0:00:15]} Rh1 {[%emt 0:03:08]} 69. h5 {[%emt 0:00:11]} Rh2 {[%emt 0:00:33]} 70. Rd5 {[%emt 0:00:38]} Kc6 {[%emt 0:00:07]} 71. Rg5 {[%emt 0:00:41]} Kd6 {[%emt 0:00:39]} 72. Kg6 {[%emt 0:00:08]} Ke7 {[%emt 0:00:13]} 73. Kg7 {[%emt 0:00:09]} Rf2 {[%emt 0:00:53]} 74. Re5+ {[%emt 0:02:51]} Kd6 {[%emt 0:00:07]} 75. Re3 {[%emt 0:00:19]} Rg2+ {[%emt 0:00:19]} 76. Kh7 {[%emt 0:00:06]} Kd7 {[%emt 0:00:45]} 77. h6 {[%emt 0:00:13]} Rg1 {[%emt 0:00:52]} 78. Ra3 {[%emt 0:00:22]} Ke7 {[%emt 0:00:35]} 79. Ra7+ {[%emt 0:00:11]} Kf8 {[%emt 0:00:30]} 80. Rg7 {[%emt 0:00:22]} Rh1 {[%emt 0:00:09]} 81. Rg5 {[%emt 0:02:02]} Rf1 {[%emt 0:00:52]} 82. Kh8 {[%emt 0:02:09]} Rf2 {[%emt 0:00:35]} 83. Rg8+ {[%emt 0:00:17]} 1-0

[Event "41th GRE-ch Women 2018"]
[Site "Thessaloniki"]
[Date "2018.12.18"]
[Round "7"]
[White "Nikolaidou, Eleni"]
[Black "Markantonaki, Haritomeni"]
[Result "0-1"]
[ECO "B30"]
[WhiteElo "1707"]
[BlackElo "2152"]
[Annotator "NA"]
[PlyCount "80"]
[EventDate "2018.12.12"]
[EventType "tourn"]
[EventCountry "GRE"]
[SourceTitle "playchess.com"]
[Source "ChessBase"]
[SourceQuality "1"]
[TimeControl "40/5400+30:1800+30"]

1. e4 {[%emt 0:04:22]} c5 {[%emt 0:00:00]} 2. Nf3 {[%emt 0:00:13]} Nc6 {[%emt 0:00:00]} 3. c3 {[%emt 0:00:14]} Nf6 {[%emt 0:00:22]} 4. e5 {[%emt 0:00:45]} Nd5 {[%emt 0:00:11]} 5. Bc4 {[%emt 0:00:15]} Nb6 {[%emt 0:00:32]} 6. Bb3 {[%emt 0:00:06]} c4 {[%emt 0:00:16]} 7. Bc2 {[%emt 0:01:21]} d6 {[%emt 0:00:28]} 8. exd6 {[%emt 0:00:39]} Qxd6 {[%emt 0:00:14]} 9. Qe2 {[%emt 0:03:17]} Bg4 {[%emt 0:04:54]} 10. b3 {[%emt 0:03:08]} Qf6 {[%emt 0:09:09]} 11. Na3 {[%emt 0:09:01]} cxb3 {[%emt 0:16:08]} 12. axb3 {[%emt 0:00:07]} Nd5 {[%emt 0:04:07]} 13. O-O {[%emt 0:13:07]} Nf4 {[%emt 0:03:51]} (13... Bxf3 $1 $11 {remains equal.} 14. Qxf3 Qxf3 15. gxf3 e6) 14. Qe4 {[%emt 0:07:35]} e6 {[%emt 0:01:05]} 15. d4 {[%emt 0:03:24]} Bd6 $18 {[%emt 0:02:56]} (15... Bxa3 $16 {might work better.} 16. Bxa3 Nh3+ 17. Kh1 Bxf3 18. gxf3 (18. Qxf3 Qxf3 19. gxf3 Nf4 $14) 18... O-O-O) 16. Nc4 {[%emt 0:27:28]} Bc7 {[%emt 0:02:58]} 17. Re1 {[%emt 0:04:37]} Nh3+ {[%emt 0:22:57]} 18. Kf1 {[%emt 0:00:16]} Bxf3 {[%emt 0:00:15]} 19. Qxf3 {[%emt 0:00:10]} Qxf3 {[%emt 0:00:53]} 20. gxf3 {[%emt 0:00:07]} O-O {[%emt 0:09:50]} 21. Re4 {[%emt 0:02:56]} g5 {[%emt 0:03:55]} 22. Kg2 {[%emt 0:05:00]} Nf4+ {[%emt 0:00:05]} 23. Bxf4 {[%emt 0:00:19]} Bxf4 {[%emt 0:00:10]} 24. h4 {[%emt 0:01:55]} h6 {[%emt 0:00:39]} 25. Ne3 {[%emt 0:05:19]} Ne7 {[%emt 0:03:18]} 26. Rg1 {[%emt 0:03:21]} Rfd8 {[%emt 0:07:04]} 27. Kf1 {[%emt 0:00:41]} Kf8 {[%emt 0:00:15]} 28. Ng2 {[%emt 0:01:03]} Bd2 {[%emt 0:00:27]} 29. c4 {[%emt 0:00:50]} Nc6 {[%emt 0:00:38]} 30. hxg5 {[%emt 0:00:51]} hxg5 {[%emt 0:00:29]} 31. f4 {[%emt 0:01:38]} Nxd4 {[%emt 0:00:40]} 32. Bd1 {[%emt 0:00:32]} f5 {[%emt 0:01:35]} 33. Re5 {[%emt 0:00:31]} g4 {[%emt 0:00:53]} 34. Rh1 {[%emt 0:00:35]} Kg7 {[%emt 0:00:18]} 35. Ne3 {[%emt 0:00:28]} Nc6 {[%emt 0:02:27]} 36. Rxe6 {[%emt 0:00:34]} Bxe3 {[%emt 0:00:04]} 37. Rxc6 {[%emt 0:00:36]} bxc6 {[%emt 0:00:10]} 38. Bc2 {[%emt 0:00:29]} Bxf4 {[%emt 0:00:07]} 39. Kg2 {[%emt 0:00:28]} Rh8 {[%emt 0:00:46]} 40. Rd1 {[%emt 0:00:00]} Rad8 {[%emt 0:00:00]} 0-1

[Event "41th GRE-ch Women 2018"]
[Site "Thessaloniki"]
[Date "2018.12.19"]
[Round "8"]
[White "Pavlidou, Ekaterini"]
[Black "Nikolaidou, Eleni"]
[Result "1-0"]
[ECO "D63"]
[WhiteElo "2185"]
[BlackElo "1707"]
[Annotator "NA"]
[PlyCount "95"]
[EventDate "2018.12.12"]
[EventType "tourn"]
[EventCountry "GRE"]
[SourceTitle "playchess.com"]
[Source "ChessBase"]
[SourceQuality "1"]
[TimeControl "40/5400+30:1800+30"]

1. d4 {[%emt 0:00:00]} Nf6 {[%emt 0:00:00]} 2. c4 {[%emt 0:00:06]} e6 {[%emt 0:00:00]} 3. Nf3 {[%emt 0:00:19]} Be7 {[%emt 0:00:28]} 4. Nc3 {[%emt 0:02:17]} d5 {[%emt 0:00:21]} 5. Bg5 {[%emt 0:01:55]} c6 {[%emt 0:00:59]} 6. e3 {[%emt 0:00:12]} Nbd7 {[%emt 0:00:42]} 7. Rc1 {[%emt 0:01:08]} O-O {[%emt 0:01:50]} 8. a3 {[%emt 0:06:11]} Ne4 {[%emt 0:17:02]} 9. Bxe7 {[%emt 0:04:32]} Qxe7 {[%emt 0:00:07]} 10. Qc2 {[%emt 0:18:33] LiveBook: 7 Games} f5 $14 {[%emt 0:04:41]} (10... Nxc3 $11 11. Qxc3 dxc4) 11. Bd3 {[%emt 0:06:55]} Ndf6 {[%emt 0:06:42]} 12. Ne5 {[%emt 0:01:21]} g6 {[%emt 0:19:16]} 13. f3 {[%emt 0:01:31]} Nd6 {[%emt 0:04:38]} 14. O-O {[%emt 0:10:04]} Bd7 {[%emt 0:06:06]} 15. Rce1 {[%emt 0:06:07]} Rad8 {[%emt 0:06:30]} 16. b4 {[%emt 0:04:54]} dxc4 {[%emt 0:01:27]} 17. Bxc4 {[%emt 0:02:24]} Nxc4 {[%emt 0:01:44]} 18. Nxc4 {[%emt 0:00:05]} b6 {[%emt 0:01:34]} 19. Ne5 {[%emt 0:03:47]} c5 {[%emt 0:06:39]} 20. dxc5 {[%emt 0:00:29]} bxc5 {[%emt 0:00:09]} 21. b5 {[%emt 0:00:08]} Qd6 {[%emt 0:00:34]} 22. Nc4 {[%emt 0:00:39]} Qb8 {[%emt 0:01:37]} 23. a4 {[%emt 0:08:33]} e5 {[%emt 0:01:19]} 24. f4 {[%emt 0:01:57]} Rfe8 {[%emt 0:09:19]} 25. Nxe5 {[%emt 0:11:08]} Rxe5 {[%emt 0:00:08]} 26. fxe5 {[%emt 0:00:02]} Qxe5 {[%emt 0:00:11]} 27. Qd2 {[%emt 0:01:02]} Re8 {[%emt 0:00:52]} 28. h3 {[%emt 0:00:53]} Be6 {[%emt 0:02:16]} 29. Rc1 {[%emt 0:00:57]} Bf7 {[%emt 0:01:01]} 30. Rfe1 {[%emt 0:00:47]} Kg7 {[%emt 0:00:36]} 31. a5 {[%emt 0:00:14]} Re7 {[%emt 0:01:23]} 32. Qb2 {[%emt 0:03:02]} f4 {[%emt 0:03:50]} 33. e4 {[%emt 0:01:42]} Qd4+ {[%emt 0:00:33]} 34. Qf2 {[%emt 0:00:19]} Qb4 {[%emt 0:00:31]} 35. a6 {[%emt 0:02:22]} g5 {[%emt 0:00:19]} 36. e5 {[%emt 0:00:42]} Nd7 {[%emt 0:01:13]} 37. e6 {[%emt 0:00:28]} Rxe6 {[%emt 0:00:30]} 38. Red1 {[%emt 0:00:38]} Nf6 {[%emt 0:00:34]} 39. Nd5 {[%emt 0:00:33]} Nxd5 {[%emt 0:00:15]} 40. Rxd5 {[%emt 0:00:00]} Qxb5 {[%emt 0:00:00]} 41. Rxg5+ {[%emt 0:01:46]} Rg6 {[%emt 0:01:51]} 42. Rxg6+ {[%emt 0:04:43]} hxg6 {[%emt 0:00:50]} 43. Rxc5 {[%emt 0:01:30]} Qxa6 {[%emt 0:00:18]} 44. Qxf4 {[%emt 0:01:07]} Qb6 {[%emt 0:00:50]} 45. Qe5+ {[%emt 0:01:21]} Kh7 {[%emt 0:03:08]} 46. Kh2 {[%emt 0:00:09]} Qd8 {[%emt 0:01:26]} 47. Rc7 {[%emt 0:00:47]} Kg8 {[%emt 0:00:41]} 48. Rb7 {[%emt 0:00:19]} 1-0

[Event "41th GRE-ch Women 2018"]
[Site "Thessaloniki"]
[Date "2018.12.19"]
[Round "8"]
[White "Markantonaki, Haritomeni"]
[Black "Grapsa, Georgia"]
[Result "1-0"]
[ECO "B90"]
[WhiteElo "2152"]
[BlackElo "2097"]
[Annotator "NA"]
[PlyCount "77"]
[EventDate "2018.12.12"]
[EventType "tourn"]
[EventCountry "GRE"]
[SourceTitle "playchess.com"]
[Source "ChessBase"]
[SourceQuality "1"]
[TimeControl "40/5400+30:1800+30"]

1. e4 {[%emt 0:00:00]} c5 {[%emt 0:00:00]} 2. Nf3 {[%emt 0:00:00]} d6 {[%emt 0:00:00]} 3. d4 {[%emt 0:00:00]} cxd4 {[%emt 0:00:00]} 4. Nxd4 {[%emt 0:00:00]} Nf6 {[%emt 0:00:00]} 5. Nc3 {[%emt 0:00:05]} a6 {[%emt 0:00:01]} 6. Be3 {[%emt 0:00:33]} e5 {[%emt 0:00:55]} 7. Nb3 {[%emt 0:00:15]} Be6 {[%emt 0:00:03]} 8. Qd2 {[%emt 0:00:39]} Nbd7 {[%emt 0:00:30]} 9. O-O-O {[%emt 0:01:34]} b5 {[%emt 0:00:17]} 10. f4 {[%emt 0:03:35]} Rc8 {[%emt 0:05:00]} 11. f5 {[%emt 0:05:44]} Bc4 {[%emt 0:00:22]} 12. Kb1 {[%emt 0:01:29]} b4 {[%emt 0:14:24]} 13. Nd5 {[%emt 0:01:49]} a5 {[%emt 0:00:23]} 14. Bxc4 {[%emt 0:10:43]} Rxc4 {[%emt 0:00:17]} 15. Qd3 {[%emt 0:00:34]} Rxe4 {[%emt 0:04:28]} 16. h3 {[%emt 0:10:00]} Nxd5 {[%emt 0:10:09]} 17. Qxe4 {[%emt 0:00:20]} N7f6 {[%emt 0:00:06]} 18. Qd3 $16 {[%emt 0:02:02]} a4 {[%emt 0:00:18]} 19. Nc1 {[%emt 0:05:30]} Qb8 {[%emt 0:04:46]} 20. Ne2 {[%emt 0:04:11]} Be7 {[%emt 0:04:36]} 21. g4 {[%emt 0:01:20]} h6 {[%emt 0:02:08]} 22. g5 {[%emt 0:08:38]} hxg5 {[%emt 0:00:07]} 23. Bxg5 {[%emt 0:00:19]} O-O {[%emt 0:03:16]} 24. Rhg1 {[%emt 0:01:32]} Rc8 {[%emt 0:01:56]} 25. Ka1 {[%emt 0:06:51]} a3 {[%emt 0:06:28]} 26. b3 {[%emt 0:00:47]} e4 {[%emt 0:05:34]} 27. Qd2 {[%emt 0:05:11]} Nc3 {[%emt 0:09:28]} 28. Nxc3 {[%emt 0:01:02]} Rxc3 {[%emt 0:00:04]} 29. Bh6 {[%emt 0:05:10]} Ne8 {[%emt 0:19:53]} 30. Bxg7 {[%emt 0:02:26]} Nxg7 {[%emt 0:00:04]} 31. Qh6 {[%emt 0:00:30]} Qf8 {[%emt 0:00:05]} 32. f6 {[%emt 0:00:25]} Bxf6 {[%emt 0:00:04]} 33. Qxf6 {[%emt 0:00:07]} Rf3 {[%emt 0:05:55]} 34. Qh6 {[%emt 0:00:51]} e3 {[%emt 0:02:40]} 35. Kb1 {[%emt 0:06:21]} e2 {[%emt 0:00:29]} 36. Rde1 {[%emt 0:00:31]} Rf2 {[%emt 0:01:54]} 37. Qe3 {[%emt 0:01:28]} Rf6 {[%emt 0:01:11]} 38. Qxe2 {[%emt 0:00:51]} Re6 {[%emt 0:00:38]} 39. Qg4 {[%emt 0:02:49]} 1-0

[Event "41th GRE-ch Women 2018"]
[Site "Thessaloniki"]
[Date "2018.12.19"]
[Round "8"]
[White "Skaraki, Antigoni"]
[Black "Makka, Ioulia"]
[Result "0-1"]
[ECO "B10"]
[WhiteElo "2012"]
[BlackElo "2065"]
[Annotator "NA"]
[PlyCount "64"]
[EventDate "2018.12.12"]
[EventType "tourn"]
[EventCountry "GRE"]
[SourceTitle "playchess.com"]
[Source "ChessBase"]
[SourceQuality "1"]
[TimeControl "40/5400+30:1800+30"]

1. e4 {[%emt 0:00:00]} c6 {[%emt 0:00:00]} 2. Nc3 {[%emt 0:00:00]} d6 {[%emt 0:01:59]} 3. d4 {[%emt 0:03:30]} g6 {[%emt 0:00:52]} 4. f4 {[%emt 0:02:32]} Bg7 {[%emt 0:00:28]} 5. Nf3 {[%emt 0:00:31]} b5 {[%emt 0:00:43] LiveBook: 44 Games} 6. a3 {[%emt 0:03:52] B06: Modern Defence} (6. Bd3 Qb6 7. e5 Nh6 8. Ne4 O-O 9. O-O Bg4 10. c3 dxe5 11. fxe5 Nd7 12. Nf2 Be6 13. Ng5 Bd5 14. Be4 Bxe4 15. Ngxe4 {1-0 (32) Anand,V (2782)-Fedoseev,V (2718) Riadh 2017}) 6... Bb7 {[%emt 0:07:04]} 7. Bd3 {[%emt 0:08:12]} a6 {[%emt 0:06:54]} 8. Be3 {[%emt 0:05:33]} Nd7 {[%emt 0:07:19]} 9. e5 $146 {[%emt 0:06:26]} ({Predecessor:} 9. O-O c5 10. Kh1 cxd4 11. Bxd4 Ngf6 12. e5 dxe5 13. fxe5 Ng4 {1-0 (29) Kelbling,P (1574)-Van der Gaag,E (1865) Halver 2005}) 9... Nh6 {[%emt 0:05:02]} 10. Qd2 {[%emt 0:08:36]} Qc7 {[%emt 0:08:13]} 11. h3 {[%emt 0:11:10]} c5 {[%emt 0:16:35]} 12. exd6 {[%emt 0:12:11]} exd6 {[%emt 0:07:53]} 13. Be4 {[%emt 0:04:33]} Bxe4 {[%emt 0:04:32]} 14. Nxe4 {[%emt 0:00:02]} O-O {[%emt 0:00:58]} 15. O-O {[%emt 0:02:01]} Rfe8 {[%emt 0:03:47]} 16. Ng3 $15 {[%emt 0:00:31]} Nb6 {[%emt 0:02:48]} 17. b3 {[%emt 0:02:57]} Nd5 {[%emt 0:01:17]} 18. Bf2 {[%emt 0:00:31]} c4 {[%emt 0:01:18]} 19. b4 {[%emt 0:04:43]} c3 {[%emt 0:01:28]} 20. Qc1 {[%emt 0:01:18]} f5 {[%emt 0:00:39]} 21. Re1 {[%emt 0:04:11]} Nf7 {[%emt 0:04:47]} 22. Nf1 {[%emt 0:02:07]} Rxe1 {[%emt 0:02:35]} 23. Nxe1 {[%emt 0:03:37]} Re8 {[%emt 0:01:34]} 24. Nd3 {[%emt 0:00:19]} Qc4 {[%emt 0:01:17]} 25. Ne3 {[%emt 0:08:17]} Nxe3 {[%emt 0:00:28]} 26. Bxe3 {[%emt 0:00:05]} Rxe3 {[%emt 0:01:17]} 27. Qxe3 {[%emt 0:01:54]} Bxd4 {[%emt 0:00:10]} 28. Kf2 {[%emt 0:00:55]} Bxe3+ {[%emt 0:00:37]} 29. Kxe3 {[%emt 0:00:03]} Nd8 {[%emt 0:01:04]} 30. a4 {[%emt 0:00:20]} Ne6 {[%emt 0:01:33]} 31. g3 {[%emt 0:00:32]} Qe4+ {[%emt 0:01:30]} 32. Kf2 {[%emt 0:00:10]} Nd4 {[%emt 0:00:36]} 0-1